[Event "43rd Indian-chT 2023-24"]
[Site "Dharamsala"]
[Date "2024.04.03"]
[Round "8.8"]
[White "Gusain, Himal"]
[Black "Gaikwad, Manas"]
[Result "1-0"]
[ECO "E63"]
[WhiteElo "2484"]
[BlackElo "1918"]
[Annotator "TA"]
[PlyCount "119"]
[EventDate "2024.03.28"]
[EventType "team-tourn"]
[EventCountry "IND"]
[SourceTitle "playchess.com"]
[Source "ChessBase"]
[SourceQuality "1"]
[TimeControl "5400+30"]

{[%evp 16,119,34,37,25,25,37,36,47,36,50,31,37,0,79,45,80,44,197,194,204,211,190,204,208,203,214,214,221,201,200,186,248,249,227,164,268,250,331,309,439,352,378,385,403,396,414,237,278,268,359,327,336,359,360,325,335,270,353,335,364,339,457,437,545,541,637,638,1310,1344,5489,5113,5587,5609,2225,2155,1209,1079,29982,29983,29983,29984,29984,29985,29985,29984,29989,29990,29992,29980,29979,29973,29982,29983,29988,29989,29993,29994,29994,29992,29993,29994,29994,29995,29995,29996]} 1. d4 {[%emt 0:00:03]} Nf6 {[%emt 0:06:03]} 2. c4 {[%emt 0:00:09]} g6 {[%emt 0:00:07]} 3. Nf3 {[%emt 0:00:05]} Bg7 {[%emt 0:00:04]} 4. g3 {[%emt 0:00:04]} O-O {[%emt 0:00:04]} 5. Bg2 {[%emt 0:00:02]} d6 {[%emt 0:00:04]} 6. O-O {[%emt 0:00:04]} Nc6 {[%emt 0:00:02]} 7. Nc3 {[%emt 0:00:04]} a6 {[%emt 0:00:04]} 8. b3 {[%emt 0:00:28]} Rb8 {[%emt 0:02:49]} 9. d5 {[%emt 0:02:21]} Na5 {[%emt 0:02:23]} (9... Nxd5 10. cxd5 Bxc3 11. Bh6) 10. Bg5 {[%emt 0:00:30]} c5 {[%emt 0:04:50]} 11. dxc6 $1 {[%emt 0:00:42]} bxc6 {[%emt 0:11:51] White is slightly better.} 12. Rc1 {[%emt 0:02:15][%cal Oc4c5]} h6 {[%emt 0:03:34]} 13. Be3 {[%emt 0:02:16]} c5 {[%emt 0:06:44]} 14. h3 {[%emt 0:00:23]} g5 {[%emt 0:15:11]} (14... Nc6 $11) 15. Bd2 {[%emt 0:02:34]} e5 {[%emt 0:05:10]} 16. Qe1 {[%emt 0:01:44]} Nc6 $2 {[%emt 0:04:41] [#] This costs Black the game.} (16... Bd7 $14) 17. Nxg5 $1 $18 {[%emt 0:01:06][%mdl 512]} hxg5 {[%emt 0:00:07]} (17... Ne7 18. Nf3) 18. Bxc6 {[%emt 0:00:04]} Bxh3 {[%emt 0:00:05] [#]} 19. Bg2 {[%emt 0:00:07]} Bxg2 {[%emt 0:12:51]} 20. Kxg2 {[%emt 0:00:10]} Nh7 {[%emt 0:00:03]} 21. e4 {[%emt 0:02:41]} Qd7 {[%emt 0:07:10]} 22. Qe2 {[%emt 0:06:38]} f5 {[%emt 0:05:50]} 23. exf5 {[%emt 0:02:16]} Rxf5 {[%emt 0:00:07]} (23... Qxf5 $142 24. Ne4 Nf6 25. Nxg5 (25. Nxd6 Qd7 $11) 25... Bh6) 24. g4 {[%emt 0:01:52]} Rf7 {[%emt 0:01:01]} 25. Ne4 {[%emt 0:01:40][%cal Of1h1]} Rbf8 {[%emt 0:01:20]} (25... Nf6 {was necessary.} 26. Bxg5 (26. Nxg5 Re7 $18) 26... Nxe4 27. Qxe4 a5) 26. f3 {[%emt 0:04:15]} (26. Nxg5 Nxg5 27. Bxg5 Rf3 $11) 26... a5 {[%emt 0:09:47]} 27. Rcd1 {[%emt 0:08:17]} (27. Nxg5 Nxg5 28. Bxg5 Qe6 $16) (27. Bxa5 Ra8 $18) 27... Qe7 {[%emt 0:01:24]} (27... Nf6 {keeps fighting.} 28. Bxg5 (28. Bxa5 Nxe4 29. Qxe4 Qa7 $16) (28. Nxg5 Re7 $18) 28... Nxe4 29. Qxe4 a4) 28. Bxa5 {[%emt 0:00:34]} Ra8 {[%emt 0:00:23]} 29. Bc3 {[%emt 0:00:38]} Ra6 {[%emt 0:00:37]} 30. Qd2 {[%emt 0:00:33]} Nf8 {[%emt 0:00:28]} 31. Qxg5 {[%emt 0:02:37]} (31. Nxd6 $142 e4 32. Nxe4 (32. Nxf7 Bxc3 33. Qxc3 Kxf7 $18)) 31... Qxg5 {[%emt 0:00:19]} 32. Nxg5 {[%emt 0:00:06]} Rxa2+ {[%emt 0:00:04]} 33. Rf2 {[%emt 0:01:35]} Rxf2+ {[%emt 0:00:58]} 34. Kxf2 {[%emt 0:00:05]} Rb7 {[%emt 0:00:26]} 35. Rxd6 {[%emt 0:00:37]} Rxb3 {[%emt 0:00:02]} 36. Bd2 {[%emt 0:00:20]} Rb2 {[%emt 0:00:34]} 37. Ke2 {[%emt 0:01:10]} Rb7 {[%emt 0:01:00]} 38. Kd3 {[%emt 0:03:33]} Nd7 {[%emt 0:00:35]} 39. Ke4 {[%emt 0:00:17]} Bf8 {[%emt 0:00:28]} 40. Rg6+ {[%emt 0:00:20]} Kh8 {[%emt 0:00:01]} 41. Bc3 {[%emt 0:01:02]} Rb3 {[%emt 0:01:00]} 42. Bxe5+ {[%emt 0:00:47]} Nxe5 {[%emt 0:00:01]} 43. Kxe5 {[%emt 0:00:07][%mdl 4096] Endgame. KRB-KRN} Rc3 {[%emt 0:00:06]} 44. Kd5 {[%emt 0:01:45] Hoping for f4.} Rd3+ {[%emt 0:01:28]} 45. Ke6 {[%emt 0:01:41] Kf7 would kill now.} Bg7 {[%emt 0:00:23]} 46. f4 {[%emt 0:01:05]} Rd4 {[%emt 0:00:39]} 47. f5 {[%emt 0:00:22] White mates.} Rxc4 {[%emt 0:00:29]} 48. f6 {[%emt 0:00:15]} Bxf6 {[%emt 0:00:29]} 49. Kxf6 {[%emt 0:00:12] KRN-KR} (49. Nf7+ Kh7 50. Rxf6 (50. Kxf6 Rf4+ 51. Kg5 Rxg4+ 52. Kxg4 Kxg6 $11) 50... Rxg4 $16) 49... Rf4+ {[%emt 0:00:18]} 50. Ke5 {[%emt 0:00:11]} Ra4 {[%emt 0:00:35]} 51. Ne4 {[%emt 0:00:21]} c4 {[%emt 0:00:11]} 52. Rc6 {[%emt 0:00:04]} Kg7 {[%emt 0:00:12]} 53. g5 {[%emt 0:00:06][%cal Bg4g5,Bg5g6][%mdl 32]} Rb4 {[%emt 0:00:31]} 54. Ng3 {[%emt 0:00:37]} c3 {[%emt 0:00:08]} 55. Nf5+ {[%emt 0:00:08]} Kg8 {[%emt 0:00:07]} 56. g6 {[%emt 0:00:44][%cal Rc6c8]} Rb8 {[%emt 0:00:06]} 57. Rxc3 {[%emt 0:00:07]} Re8+ {[%emt 0:00:04]} 58. Kf6 {[%emt 0:00:06]} Rf8+ {[%emt 0:00:03]} 59. Kg5 {[%emt 0:00:08]} Ra8 {[%emt 0:00:04]} 60. Rc7 {[%emt 0:00:05] Weighted Error Value: White=0.19 (very precise) /Black=0.53.  Mistake:       	White=1     	Black=5      Inaccurate:     	White=3     	Black=6      OK:         	White=15    	Black=12     Best:        	White=1     	---        Strong:       	White=1     	---        Brilliant:      	White=1     	---} 1-0

[Event "43rd Indian-chT 2023-24"]
[Site "Dharamsala"]
[Date "2024.04.04"]
[Round "9.1"]
[White "Krishna C R G"]
[Black "Sourabh, Kochar"]
[Result "1-0"]
[ECO "D30"]
[WhiteElo "2445"]
[BlackElo "1438"]
[Annotator "RC"]
[PlyCount "131"]
[EventDate "2024.03.28"]
[EventType "team-tourn"]
[EventCountry "IND"]
[SourceTitle "playchess.com"]
[Source "ChessBase"]
[SourceQuality "1"]
[TimeControl "5400+30"]

1. d4 {[%emt 0:00:04]} d5 {[%emt 0:00:10]} 2. c4 {[%emt 0:00:02]} e6 {[%emt 0:00:12]} 3. Nf3 {[%emt 0:00:04]} c5 {[%emt 0:00:41]} 4. cxd5 {[%emt 0:00:06]} exd5 {[%emt 0:00:23]} 5. g3 {[%emt 0:00:03]} Nf6 {[%emt 0:00:50]} 6. Bg2 {[%emt 0:00:04]} Nc6 {[%emt 0:01:16]} 7. O-O {[%emt 0:00:04]} Bd7 {[%emt 0:01:49]} 8. Nc3 {[%emt 0:00:14]} Rc8 {[%emt 0:02:31]} 9. dxc5 {[%emt 0:00:03]} Bxc5 {[%emt 0:02:04]} 10. Nxd5 {[%emt 0:00:03]} Nxd5 {[%emt 0:04:21]} 11. Qxd5 {[%emt 0:00:02]} Ne7 {[%emt 0:01:01]} 12. Qxb7 {[%emt 0:02:09]} Bc6 {[%emt 0:01:13]} 13. Qb3 {[%emt 0:00:04]} O-O 14. Be3 Bd5 {[%emt 0:06:47]} 15. Qd3 {[%emt 0:01:33]} f5 {[%emt 0:06:28]} 16. Bxc5 {[%emt 0:00:12]} Rxc5 {[%emt 0:00:49]} 17. Rfd1 {[%emt 0:00:18]} Qc7 {[%emt 0:01:27]} 18. Nd4 {[%emt 0:00:47]} Bc4 {[%emt 0:05:21]} 19. Qe3 {[%emt 0:00:44]} Re5 {[%emt 0:01:39]} 20. Qc3 {[%emt 0:00:15]} Rc8 {[%emt 0:06:05]} 21. Rac1 {[%emt 0:00:37]} Qb6 {[%emt 0:09:04]} 22. Qd2 {[%emt 0:02:24]} Ba6 {[%emt 0:08:54]} 23. Rxc8+ {[%emt 0:00:24]} Bxc8 {[%emt 0:00:58]} 24. e3 {[%emt 0:00:11]} Bb7 {[%emt 0:01:57]} 25. Bxb7 {[%emt 0:00:04]} Qxb7 {[%emt 0:00:33]} 26. Qc2 {[%emt 0:00:03]} Kf8 {[%emt 0:05:21]} 27. Rc1 {[%emt 0:00:53]} g6 {[%emt 0:03:41]} 28. Qb3 {[%emt 0:00:38]} Qxb3 {[%emt 0:00:38]} 29. Nxb3 {[%emt 0:00:02]} Nd5 {[%emt 0:00:54]} 30. Rc5 {[%emt 0:00:11]} g5 {[%emt 0:01:11]} 31. f4 {[%emt 0:00:54]} gxf4 {[%emt 0:00:04]} 32. gxf4 {[%emt 0:00:02]} Rxe3 {[%emt 0:01:24]} 33. Rxd5 {[%emt 0:00:07]} Re2 {[%emt 0:00:15]} 34. Rxf5+ {[%emt 0:00:13]} Kg7 {[%emt 0:00:43]} 35. Rg5+ {[%emt 0:00:13]} Kf6 {[%emt 0:00:22]} 36. Rg2 {[%emt 0:00:02]} Re4 {[%emt 0:01:25]} 37. Nc5 {[%emt 0:00:07]} Rc4 {[%emt 0:00:29]} 38. Nd3 {[%emt 0:00:13]} h5 {[%emt 0:00:23]} 39. Kf2 {[%emt 0:00:06]} h4 {[%emt 0:00:41]} 40. Ke3 {[%emt 0:00:05]} a5 {[%emt 0:01:30]} 41. Rg6+ {[%emt 0:00:12]} Kf5 {[%emt 0:00:42]} 42. Rg5+ {[%emt 0:00:05]} Kf6 {[%emt 0:00:53]} 43. Rh5 {[%emt 0:00:13]} a4 {[%emt 0:00:30]} 44. Rxh4 {[%emt 0:00:03]} Rc2 {[%emt 0:01:25]} 45. Rh6+ {[%emt 0:00:06]} Ke7 {[%emt 0:00:34]} 46. h4 {[%emt 0:00:15]} a3 {[%emt 0:00:13]} 47. bxa3 {[%emt 0:00:01]} Rxa2 {[%emt 0:00:21]} 48. h5 {[%emt 0:00:03]} Rxa3 {[%emt 0:00:31]} 49. Ke4 {[%emt 0:00:02]} Kf7 {[%emt 0:00:42]} 50. Ne5+ {[%emt 0:00:08]} Kg7 {[%emt 0:00:24]} 51. Rg6+ {[%emt 0:00:05]} Kh7 {[%emt 0:00:38]} 52. Ng4 {[%emt 0:00:10]} Ra4+ {[%emt 0:00:27]} 53. Kf3 {[%emt 0:00:04]} Ra3+ {[%emt 0:00:51]} 54. Kg2 {[%emt 0:00:03]} Ra2+ {[%emt 0:00:27]} 55. Kh3 {[%emt 0:00:03]} Ra3+ {[%emt 0:00:18]} 56. Kh4 {[%emt 0:00:02]} Ra8 {[%emt 0:00:15]} 57. Nf6+ {[%emt 0:00:11]} Kh8 {[%emt 0:00:27]} 58. h6 {[%emt 0:00:11]} Rf8 {[%emt 0:01:07]} 59. h7 {[%emt 0:00:06]} Rxf6 {[%emt 0:00:29]} 60. Rxf6 {[%emt 0:00:02]} Kxh7 {[%emt 0:00:08]} 61. Kg5 {[%emt 0:00:04]} Kg7 {[%emt 0:00:16]} 62. f5 {[%emt 0:00:03]} Kh7 {[%emt 0:00:26]} 63. Rf7+ {[%emt 0:00:04]} Kh8 {[%emt 0:00:23]} 64. Kg6 {[%emt 0:00:07]} Kg8 {[%emt 0:00:09]} 65. f6 {[%emt 0:00:02]} Kh8 {[%emt 0:00:10]} 66. Rf8# {[%emt 0:00:02]} 1-0

[Event "43rd Indian-chT 2023-24"]
[Site "Dharamsala"]
[Date "2024.04.04"]
[Round "9.2"]
[White "Thanki, Hemal Karsanji"]
[Black "Aronyak Ghosh"]
[Result "0-1"]
[ECO "B51"]
[WhiteElo "2067"]
[BlackElo "2517"]
[Annotator "TA"]
[PlyCount "61"]
[EventDate "2024.03.28"]
[EventType "team-tourn"]
[EventCountry "IND"]
[SourceTitle "playchess.com"]
[Source "ChessBase"]
[SourceQuality "1"]
[TimeControl "5400+30"]

{[%evp 9,61,30,19,20,17,8,29,14,35,27,24,27,31,6,10,-12,0,-5,-14,-22,-33,-35,-31,-81,-81,-83,-85,-90,-87,-96,-103,-120,-108,-105,-111,-116,-102,-104,-104,-333,-333,-367,-362,-367,-275,-495,-495,-495,-488,-476,-393,-29972,-7963,-4926]} 1. e4 {[%emt 0:00:03]} c5 {[%emt 0:01:25]} 2. Nf3 {[%emt 0:00:03]} d6 {[%emt 0:00:18]} 3. Bb5+ {[%emt 0:00:03]} Nd7 {[%emt 0:00:43]} 4. Ba4 {[%emt 0:00:01]} Ngf6 {[%emt 0:01:15]} 5. O-O {[%emt 0:00:04]} g6 {[%emt 0:05:23]} 6. Re1 {[%emt 0:00:21]} Bg7 {[%emt 0:03:47]} 7. c3 {[%emt 0:03:32]} O-O {[%emt 0:03:02]} 8. d4 {[%emt 0:00:02] White has an edge.} e5 {[%emt 0:05:30]} 9. dxe5 {[%emt 0:03:21]} Nxe5 {[%emt 0:00:50]} 10. Nxe5 {[%emt 0:00:08]} dxe5 {[%emt 0:00:03]} 11. Qxd8 {[%emt 0:01:21]} Rxd8 {[%emt 0:00:03]} 12. Bg5 {[%emt 0:00:30]} Be6 {[%emt 0:08:13]} 13. Na3 {[%emt 0:04:47]} c4 {[%emt 0:00:50] Prevents Bb3.} 14. Rad1 {[%emt 0:20:24]} (14. f4 {is interesting.} exf4 15. e5 Ng4 16. Bxd8 Rxd8 17. Rad1) 14... a6 {[%emt 0:02:50]} 15. Rxd8+ {[%emt 0:08:42]} Rxd8 {[%emt 0:00:06]} 16. Bxf6 {[%emt 0:10:18]} ({Better is} 16. Bc2 $15) 16... Bxf6 $17 {[%emt 0:00:05]} 17. Rd1 {[%emt 0:00:07] Prevents Rd2} b5 {[%emt 0:03:57]} 18. Rxd8+ {[%emt 0:00:15]} Bxd8 {[%emt 0:00:03][%mdl 4096] Endgame. KBB-KBN} 19. Bd1 {[%emt 0:00:17]} Bg5 {[%emt 0:02:40] And now ...Bc1 would win.} 20. Nb1 {[%emt 0:04:53]} Bc1 {[%emt 0:04:59]} 21. b4 {[%emt 0:01:08]} cxb3 {[%emt 0:08:34]} 22. axb3 {[%emt 0:02:55]} a5 {[%emt 0:00:18]} 23. Kf1 f5 {[%emt 0:02:42] Black is more active.} 24. f3 $2 {[%emt 0:12:38] Loses the game.} (24. Ke2 $17) 24... fxe4 $19 {[%emt 0:01:30]} 25. fxe4 {[%emt 0:00:01] [#]} a4 $1 {[%emt 0:01:52][%mdl 512]} 26. bxa4 {[%emt 0:00:58]} Ba2 {[%emt 0:00:34] ...bxa4 would now be deadly.} 27. Bc2 $2 {[%emt 0:09:42]} (27. axb5 {only move.} Bxb1 28. Kf2) 27... bxa4 {[%emt 0:00:36]} 28. Ke1 {[%emt 0:00:17]} a3 {[%emt 0:01:01]} 29. Kd1 {[%emt 0:01:28]} Bb2 {[%emt 0:00:19]} 30. Ba4 $2 {[%emt 0:00:39]} (30. Nd2 $19) 30... Bxb1 {[%emt 0:00:09]} 31. Bb3+ {[%emt 0:00:06] Weighted Error Value: White=0.59/Black=0.03 (flawless) .  Loses game:     	White=1     	---        Mistake:       	White=3     	---        OK:         	White=6     	Black=8      Best:        	White=1     	Black=6      Brilliant:      	---       	Black=1} 0-1

[Event "43rd Indian-chT 2023-24"]
[Site "Dharamsala"]
[Date "2024.04.04"]
[Round "9.3"]
[White "Ghosh, Diptayan"]
[Black "Ram, S. Krishnan"]
[Result "1-0"]
[ECO "A11"]
[WhiteElo "2559"]
[BlackElo "2010"]
[Annotator "TA"]
[PlyCount "62"]
[EventDate "2024.03.28"]
[EventType "team-tourn"]
[EventCountry "IND"]
[SourceTitle "playchess.com"]
[Source "ChessBase"]
[SourceQuality "1"]
[TimeControl "5400+30"]

{[%evp 11,62,30,26,3,27,21,20,0,13,12,19,-1,37,-31,39,18,37,-16,22,22,37,-20,35,2,68,47,165,170,160,169,155,148,191,147,147,99,109,110,168,171,160,171,153,152,156,152,204,205,189,189,170,183,29990]} 1. Nf3 {[%emt 0:01:30]} d5 {[%emt 0:00:13]} 2. g3 {[%emt 0:00:05]} Nf6 {[%emt 0:00:09]} 3. Bg2 {[%emt 0:00:04]} Bf5 {[%emt 0:00:08]} 4. O-O {[%emt 0:00:09]} e6 {[%emt 0:00:01]} 5. c4 {[%emt 0:00:10]} Nbd7 {[%emt 0:00:42]} 6. d3 {[%emt 0:03:22]} c6 {[%emt 0:02:40]} 7. Qb3 {[%emt 0:02:39]} Nc5 {[%emt 0:01:46]} 8. Qc2 {[%emt 0:00:56]} Be7 {[%emt 0:01:39]} 9. Be3 {[%emt 0:01:41] [#] aiming for cxd5. The position is equal.} Rc8 {[%emt 0:00:55]} 10. Nbd2 {[%emt 0:08:20]} O-O {[%emt 0:03:41]} 11. Rfc1 {[%emt 0:01:17]} h6 {[%emt 0:00:36][%cal Oe6e5]} 12. Nb3 {[%emt 0:07:13]} (12. cxd5 $14 cxd5 13. Nb3) 12... Nfd7 {[%emt 0:05:31]} (12... Ncd7 $15) 13. Qd1 {[%emt 0:05:12]} Bh7 {[%emt 0:03:14]} 14. Rab1 {[%emt 0:04:21]} (14. cxd5 $14 cxd5 15. Nxc5 Bxc5 16. Qd2) 14... a5 {[%emt 0:03:46]} 15. cxd5 {[%emt 0:07:38]} cxd5 {[%emt 0:00:44]} 16. Bd4 {[%emt 0:00:13]} (16. Nxc5 $14 Nxc5 17. Qd2) 16... b5 {[%emt 0:02:06]} (16... b6 $11) 17. Nxc5 {[%emt 0:03:42]} Nxc5 {[%emt 0:01:27]} (17... Bxc5 $11 18. Bxc5 Nxc5) 18. Rc2 $1 $14 {[%emt 0:01:20] Threatens to win with Rbc1.} Qd7 {[%emt 0:04:30]} ({Black should try} 18... Nd7 $14) 19. Rbc1 $18 {[%emt 0:05:19]} Na6 {[%emt 0:00:09]} 20. Ne5 {[%emt 0:00:10]} Qb7 {[%emt 0:00:10]} 21. Nc6 {[%emt 0:00:17] And now Nxe7+ would win.} Bd8 {[%emt 0:00:29]} 22. e4 {[%emt 0:14:21]} dxe4 {[%emt 0:00:15]} 23. Bxe4 {[%emt 0:00:28]} (23. dxe4 $142 Nb8 24. Qg4) 23... Bxe4 $16 {[%emt 0:00:30]} 24. dxe4 {[%emt 0:00:04][%cal Oa2a4]} Nb8 {[%emt 0:03:27] [#]} (24... Kh7 $16 {might work better.}) 25. Qg4 $1 $18 {[%emt 0:04:34][%csl Gd4][%cal Rg4g7] White is clearly better.} f5 {[%emt 0:01:41]} 26. Qg6 {[%emt 0:06:57] White is much more active.} Rxc6 {[%emt 0:00:03]} 27. Rxc6 {[%emt 0:00:19]} Nxc6 28. Rxc6 {[%emt 0:05:26]} (28. Qxe6+ Qf7 29. Rxc6 (29. Qxc6 fxe4 30. Qxe4 Bf6 $16) 29... fxe4 $16) 28... Bf6 {[%emt 0:04:07]} (28... fxe4 $16 29. Rxe6 (29. Qxe4 Re8 $16) 29... e3) 29. Bxf6 {[%emt 0:00:24]} (29. Rxe6 $2 Bxd4 30. Re8 Qd7 (30... Bxb2 $2 31. Qe6+ Qf7 32. Rxf8+ Kxf8 33. Qc8+ Qe8 34. Qxf5+ Bf6 35. Qc5+ Kg8 36. Qd5+ Kh8 37. f4 $19) 31. Rxf8+ Kxf8 $19) 29... Rxf6 {[%emt 0:00:02]} 30. Qe8+ {[%emt 0:00:01]} (30. Rxe6 $2 {is the wrong capture.} Rxg6 31. Rxg6 Qxe4 $19) 30... Kh7 {[%emt 0:00:06][%cal Of6f8]} 31. e5 {[%emt 0:01:31]} ({Inferior is} 31. Rxe6 Rxe6 32. Qxe6 Qxe4 $11) 31... Qd7 $2 {[%emt 0:00:31] Weighted Error Value: White=0.22 (precise) /Black=0.33.  Mistake:       	White=4     	Black=7      Inaccurate:     	White=1     	Black=2      OK:         	White=6     	Black=8      Best:        	White=3     	---        Strong:       	White=2     	---} (31... Rf8 $18 32. Qxe6 (32. Qxf8 Qxc6 33. Qd6 Qc1+ 34. Kg2 Qc4 $17) 32... f4) 1-0

[Event "43rd Indian-chT 2023-24"]
[Site "Dharamsala"]
[Date "2024.04.04"]
[Round "9.4"]
[White "Sudhakar, Prem Dutt"]
[Black "Neelash Saha"]
[Result "0-1"]
[ECO "B13"]
[WhiteElo "1816"]
[BlackElo "2463"]
[Annotator "TA"]
[PlyCount "72"]
[EventDate "2024.03.28"]
[EventType "team-tourn"]
[EventCountry "IND"]
[SourceTitle "playchess.com"]
[Source "ChessBase"]
[SourceQuality "1"]
[TimeControl "5400+30"]

{[%evp 12,72,23,24,31,30,17,17,11,18,19,-22,-15,-34,9,-71,-64,-75,-55,-55,-45,-65,-36,-39,-21,-20,21,-8,-2,0,0,-140,-133,-124,-117,-162,-170,-187,-67,-66,44,-110,-61,-58,-64,-116,-147,-133,-102,-350,-246,-253,-260,-250,-235,-1488,-523,-1602,-411,-29987,-29988,-29988,-29989]} 1. e4 {[%emt 0:05:51]} c6 {[%emt 0:00:33]} 2. d4 {[%emt 0:00:38]} d5 {[%emt 0:00:09]} 3. exd5 {[%emt 0:00:06]} cxd5 {[%emt 0:00:05]} 4. Bd3 {[%emt 0:00:09]} Nc6 {[%emt 0:00:15]} 5. c3 {[%emt 0:00:11]} Nf6 {[%emt 0:00:06]} 6. Bf4 {[%emt 0:00:07]} Bg4 {[%emt 0:00:31]} 7. Qb3 {[%emt 0:00:27]} Na5 {[%emt 0:05:38]} 8. Qa4+ {[%emt 0:04:51]} Bd7 {[%emt 0:00:19]} 9. Qd1 {[%emt 0:01:35]} Qb6 {[%emt 0:02:50] The position is equal.} 10. Qe2 {[%emt 0:11:40]} Bg4 {[%emt 0:03:04]} 11. f3 {[%emt 0:06:06]} Bd7 {[%emt 0:00:16]} 12. b4 {[%emt 0:02:48]} Nc6 {[%emt 0:00:34]} 13. Qb2 {[%emt 0:10:06]} (13. a4 $11) 13... Nh5 $17 {[%emt 0:01:55]} 14. Bc1 {[%emt 0:05:44]} e6 {[%emt 0:04:37]} 15. Ne2 {[%emt 0:05:18]} Bd6 {[%emt 0:00:10]} 16. a4 {[%emt 0:00:55][%cal Ba2a4,Ba4a5][%mdl 32]} Qc7 {[%emt 0:02:04][%cal Oe8g8] Black is more active.} 17. g3 {[%emt 0:02:24]} e5 {[%emt 0:06:44]} 18. Na3 {[%emt 0:01:54]} Qb6 {[%emt 0:19:15]} 19. Nb5 {[%emt 0:07:11]} Bb8 {[%emt 0:00:07]} 20. a5 {[%emt 0:01:53]} Qd8 {[%emt 0:00:04]} 21. Bd2 {[%emt 0:06:16]} (21. a6 $11 {keeps the balance.} bxa6 22. Rxa6) 21... a6 {[%emt 0:02:49]} 22. Na3 {[%emt 0:00:28] [#]} Bh3 $1 {[%emt 0:00:27]} 23. Rg1 {[%emt 0:02:40] [#]} Qf6 $1 {[%emt 0:03:15]} 24. b5 {[%emt 0:02:02]} Nxa5 {[%emt 0:00:07]} (24... axb5 $19 {...0-0 is the strong threat.} 25. Bxb5 O-O (25... Rxa5 26. g4 $11) (25... Qxf3 26. a6 $15)) 25. bxa6 $15 {[%emt 0:00:34] Strongly threatening dxe5.} bxa6 {[%emt 0:02:45]} (25... Qxf3 26. Bb5+ Kd8 27. Qb4 bxa6 28. Qxa5+ Bc7 29. Qa4 $18) (25... O-O $1 $15 26. axb7 Ra7 27. dxe5 (27. Nb5 Nc4 $17) 27... Bxe5 (27... Qxf3 28. Qc2 $17)) 26. c4 $2 {[%emt 0:04:36]} (26. Nc2 $1 $14 {is the one way to stay ahead.} Qxf3 27. Ne3) 26... Bc7 {[%emt 0:06:05]} (26... Qxf3 $17 27. Bc2 Bc7 (27... Nxc4 28. Nxc4 dxc4 29. Ra3 $16) 28. Ba4+ Kf8) 27. cxd5 {[%emt 0:00:54]} O-O $1 {[%emt 0:00:10]} (27... Qxf3 28. Rc1 e4 29. Bxe4 Qxe4 30. Rxc7 $11) 28. Be4 {[%emt 0:02:22]} (28. Rc1 $15 Rab8 (28... Qxf3 29. Rxc7 Qxd3 30. Bxa5 $14) 29. Qc3 exd4 (29... Qxf3 $2 {loses.} 30. Bxh7+ Kxh7 31. Qxf3 $18) 30. Qxc7 Qxf3 31. Qc2) 28... Rab8 {[%emt 0:00:38]} 29. Qc2 {[%emt 0:01:41]} Rfc8 $36 {[%emt 0:00:04][%mdl 2048] ...Nb3 would now be deadly. White is under strong pressure.} 30. Qa4 {[%emt 0:02:39] [#] Loses the game.} (30. Rb1 $17) 30... exd4 $1 {[%emt 0:02:19]} 31. Bxa5 {[%emt 0:01:03]} Bxa5+ {[%emt 0:00:10]} 32. Qxa5 {[%emt 0:01:02] Threatens to win with Rd1.} d3 $1 {[%emt 0:00:04]} 33. Kf2 $2 {[%emt 0:01:17]} (33. Bxd3 Qxa1+ 34. Kf2) 33... dxe2 {[%emt 0:00:11]} (33... Rb2 $142 {[%csl Gd3][%cal Rb2e2]} 34. Ke3 dxe2 (34... Rxe2+ 35. Kxd3 Rf2 36. Rge1 $19)) 34. Rab1 {[%emt 0:00:43]} Bf1 {[%emt 0:00:46]} (34... Qd4+ $142 35. Kxe2 Bg4 36. fxg4 Qxe4+ 37. Kf2 Nf6 (37... Qxg4 $2 38. Rxb8 Rxb8 39. Rb1 $19)) 35. Qd2 {[%emt 0:05:02]} (35. Rgxf1 $19 exf1=Q+ (35... exf1=R+ $2 36. Kxf1 Rxb1+ 37. Nxb1 $19) 36. Kxf1) 35... Rxb1 {[%emt 0:00:10]} 36. Nxb1 {[%emt 0:00:36]} Qb6+ {[%emt 0:00:06] Weighted Error Value: White=0.99/Black=0.63.  Loses game:     	White=1     	---        Mistake:       	White=6     	Black=4      Inaccurate:     	White=4     	Black=3      OK:         	White=9     	Black=8      Best:        	White=1     	Black=1      Strong:       	---       	Black=4} 0-1